Cogmind - Beta 12 *** ADVENTURER MODE // 2024.01.15 @ 20:00:55 Player: Lowenar Result: Destroyed by G-47 Trooper with Particle Gun Performance ------------- Evolutions (1) 500 Regions Visited (2) 400 Robots Destroyed (26) 130 Value Destroyed (648) 648 Prototype IDs (2) 40 Alien Tech Used (0) 0 Bonus (0) 0 TOTAL SCORE: 1718 Bonus ------- None Cogmind --------- Core Integrity 0/400 Matter 134/300 Energy 99/100 System Corruption 0% Temperature Cool (9) Movement Core (150) Ox2 Location -9/Materials Parts ------- > --- POWER (2) -------- (None) > --- PROPULSION (2) --- (None) > --- UTILITY (3) ------ Small Storage Unit > --- WEAPON (2) ------- Medium Laser > --- INVENTORY (8) ---- Hover Unit Flight Unit Peak State ------------ > --- POWER ------------ Ion Engine Light Nuclear Core > --- PROPULSION ------- Aluminum Leg Aluminum Leg > --- UTILITY ---------- Small Storage Unit Small Storage Unit Medium Storage Unit > --- WEAPON ----------- Particle Gun Mini Grenade Launcher > --- INVENTORY -------- Hover Unit Flight Unit Large Storage Unit Medium Laser [Rating: 13] Favorites ----------- Power Ion Engine Engine Ion Engine Power Core Light Nuclear Core Propulsion Aluminum Leg Leg Aluminum Leg Hover Unit Hover Unit Utility Small Storage Unit Storage Small Storage Unit Weapon Mini Grenade Launcher Energy Gun Particle Gun Launcher Mini Grenade Launcher Special Melee Weapon Datajack Build | -11 -10 -9 ------- Run | Jun Mat Mat Slots Evolved 2 | . . 2 Power 1 | . . 1 Propulsion . | . . . Utility 1 | . . 1 Weapon . | . . . Parts Attached 21 | 5 8 8 Power 3 | 1 1 1 Engine 2 | 1 . 1 Core 1 | . 1 . Reactor . | . . . Propulsion 5 | 2 . 3 Treads . | . . . Leg 4 | 2 . 2 Wheel . | . . . Hover 1 | . . 1 Flight . | . . . Utility 4 | . 2 2 Device . | . . . Storage 4 | . 2 2 Processor . | . . . Hackware . | . . . Protection . | . . . Artifact . | . . . Weapon 9 | 2 5 2 Energy Gun 6 | 2 2 2 Energy Cannon . | . . . Ballistic Gun . | . . . Ballistic Cannon . | . . . Launcher 2 | . 2 . Special Weapon . | . . . Impact Weapon . | . . . Slashing Weapon . | . . . Piercing Weapon . | . . . Special Melee Weapon 1 | . 1 . Unidentified Prototypes . | . . . Parts Lost 8 | . . 8 Power 2 | . . 2 Propulsion 3 | . . 3 Utility . | . . . Weapon 3 | . . 3 Highest Loss Streak 6 | . . 6 To Critical Strikes . | . . . Average Slot Usage (%) 92 | . 97 82 Engine 7 | . 6 10 Core 8 | . 7 10 Leg 25 | . 28 18 Storage 24 | . 25 21 Energy Gun 16 | . 18 10 Launcher 7 | . 7 10 Special Melee Weapon 1 | . 2 . Naked Turns . | . . . Heaviest Build 34 | 9 19 34 Greatest Support 20 | 20 20 20 Greatest Overweight (x) 3 | . . 3 Average Overweight (x) . | . . . Largest Inventory Capacity 15 | 5 8 15 Average Capacity 7 | 5 7 8 Most Carried 8 | 5 8 6 Average Carried 5 | 3 6 3 Final Capacity 8 | 5 8 8 Final Carried 6 | 4 6 2 Class Distribution -------------------- 100% | Mutant Dominant Class ---------------- Mutant | -10/Materials Mutant | -9/Materials Resources | -11 -10 -9 ----------- Run | Jun Mat Mat Matter Collected 424 | 198 172 54 Remotely . | . . . Salvage Created 543 | . 199 344 Parts 38 | . 13 25 Haulers Intercepted 2 | . . 2 Recyclers Shooed 2 | . . 2 Parts Field Recycled . | . . . Retrieved Matter . | . . . Parts Self-Destructed . | . . . Prevented . | . . . Kills | -11 -10 -9 ------- Run | Jun Mat Mat Combat Hostiles Destroyed 15 | . 7 8 Guns 3 | . 2 1 AOE 12 | . 5 7 Classes Destroyed 8 | . 3 5 Worker 3 | . . 3 Builder 1 | . . 1 Hauler 2 | . . 2 Mechanic 1 | . . 1 Watcher 4 | . 2 2 Swarmer 3 | . 3 . Grunt 10 | . 4 6 Sentry 2 | . . 2 Best Kill Streak 10 | . 4 10 Combat Bots Only 4 | . 4 4 Max Kills in Single Turn 3 | . 3 3 Gunslinging 1 | . 1 . Exploded 3 | . 3 2 Melee . | . . . Uniques/NPCs Destroyed . | . . . Combat | -11 -10 -9 -------- Run | Jun Mat Mat Damage Taken 1231 | . 191 1040 Core 447 | . 45 402 Absorbed by Shields . | . . . Core Remaining (%) 91 | 100 82 . Volleys Fired 29 | . 7 22 Largest 2 | . 2 2 Hottest 95 | . 95 95 Shots Fired 43 | . 13 30 Gun 21 | . 9 12 Cannon . | . . . Launcher 22 | . 4 18 Special . | . . . Kinetic . | . . . Thermal 17 | . 5 12 Explosive 22 | . 4 18 Electromagnetic 4 | . 4 . Robot Hit Streak 6 | . 5 6 Robot Miss Streak 2 | . 1 2 Penetration Max . | . . . Secondary Targets 1 | . 1 . Max Gunslinging Chain 1 | . 1 . Shots Hit Robots 30 | . 11 19 Core Hits 39 | . 11 28 Critical Kills . | . . . Critical Parts Destroyed . | . . . Critical Strikes 1 | . . 1 Burn 1 | . . 1 Melee Attacks . | . . . Impact . | . . . Slashing . | . . . Piercing . | . . . Sneak Attacks . | . . . Combat Hostiles . | . . . Follow-up Attacks . | . . . Damage Inflicted 2151 | . 558 1593 Guns 237 | . 96 141 Cannons . | . . . Explosions 1914 | . 462 1452 Melee . | . . . Ramming . | . . . Kinetic . | . . . Thermal 196 | . 55 141 Explosive 1892 | . 462 1430 Electromagnetic 63 | . 41 22 Impact . | . . . Slashing . | . . . Piercing . | . . . Highest Corruption . | . . . Average Corruption . | . . . Corruption Purged . | . . . Corruption Blocked . | . . . Overload Shots . | . . . Overflow Damage 32 | . 32 . Projectiles . | . . . Explosions 32 | . 32 . Melee . | . . . Knockbacks . | . . . Impact . | . . . Kinetic . | . . . Secondary . | . . . Self-Inflicted Damage 70 | . . 70 Shots 5 | . . 5 Rammed . | . . . Targets Rammed . | . . . Kicked . | . . . Crushed . | . . . Highest Temperature 330 | . 115 330 Average Temperature 125 | . 39 157 Received Heat Transfer 573 | . 141 432 Effects 2 | . . 2 Interference 2 | . . 2 Siege Activations . | . . . Robots Corrupted . | . . . Combat Hostiles . | . . . Parts Fried . | . . . Impact Corruptions . | . . . Robots Melted . | . . . Combat Hostiles . | . . . Parts Melted 1 | . . 1 Heat Transferred 555 | . 148 407 Parts Sabotaged . | . . . Parts Stolen . | . . . Parts Stripped . | . . . Power Chain Reactions . | . . . Missiles Intercepted . | . . . Alert | -11 -10 -9 ------- Run | Jun Mat Mat Peak Influence 385 | . 183 385 Initial 43 | . . 43 Average 103 | . 62 224 Maximum Alert Level 1 | . . 1 Low Security (%) 83 | 100 100 43 Level 1 16 | . . 56 Level 2 . | . . . Level 3 . | . . . Level 4 . | . . . Level 5 . | . . . High Security . | . . . Max Security . | . . . Squads Dispatched 1 | . . 1 Investigation . | . . . Extermination . | . . . Reinforcement 1 | . . 1 Assault . | . . . Garrison . | . . . Intercept . | . . . Searches Triggered . | . . . Construction Impeded . | . . . Haulers Reinforced . | . . . Active Scanning Responses . | . . . Cargo Convoy Interrupts . | . . . Stealth | -11 -10 -9 --------- Run | Jun Mat Mat Distress Signals 6 | . 1 5 Communications Jammed . | . . . Distress Signals . | . . . Times Spotted 36 | . 12 24 Peak Tracking Total 10 | . 4 10 Tactical Retreats 2 | . 2 . Traps | -11 -10 -9 ------- Run | Jun Mat Mat Traps Triggered . | . . . Indirectly . | . . . Trap Hack Attempts . | . . . Triggered . | . . . Disarmed . | . . . Reprogrammed . | . . . Reused . | . . . Traps Extracted . | . . . Installed . | . . . Triggered . | . . . Machines | -11 -10 -9 ---------- Run | Jun Mat Mat Machines Disabled 6 | . 2 4 Max in Single Turn 2 | . 1 2 Machines Repaired . | . . . Machines Sabotaged . | . . . Overloaded Fab Kills . | . . . Hacking | -11 -10 -9 --------- Run | Jun Mat Mat Machines Accessed 4 | . 3 1 Terminals 3 | . 2 1 Fabricators . | . . . Repair Stations . | . . . Recycling Units 1 | . 1 . Scanalyzers . | . . . Garrison Access . | . . . Total Hacks 13 | . 7 6 Successful 10 | . 5 5 Failed 3 | . 2 1 Catastrophic . | . . . Database Lockouts . | . . . Manual 1 | . 1 . Terminals 8 | . 2 6 Fabricators . | . . . Repair Stations . | . . . Recycling Units 5 | . 5 . Scanalyzers . | . . . Garrison Access . | . . . Terminal Hacks 6 | . 1 5 Record 3 | . . 3 Prototype ID Bank 1 | . . 1 Alert Level 2 | . 1 1 Fabricator Hacks . | . . . Repair Station Hacks . | . . . Recycling Unit Hacks 4 | . 4 . Recycle Component 2 | . 2 . Process 1 | . 1 . Report Inventory 1 | . 1 . Scanalyzer . | . . . Garrison Access Hacks . | . . . Unauthorized Hacks . | . . . Terminals . | . . . Fabricators . | . . . Repair Stations . | . . . Recycling Units . | . . . Scanalyzers . | . . . Garrison Access . | . . . Data Cores Recovered . | . . . Used . | . . . Hacking Detections 1 | . 1 . Full Trace Events 1 | . 1 . Feedback Events . | . . . Feedback Blocked . | . . . Robot Schematics Acquired . | . . . Robots Built . | . . . Authchips . | . . . Time . | . . . Total Robot Build Rating . | . . . Part Schematics Acquired . | . . . Parts Built . | . . . Authchips . | . . . Time . | . . . Total Part Build Rating . | . . . Parts Repaired . | . . . Time . | . . . Parts Recycled 2 | . 2 . Recycled Matter 187 | . 187 . Retrieved Matter . | . . . Retrieved Components . | . . . Parts Scanalyzed . | . . . Part Schematics Acquired . | . . . Parts Damaged . | . . . Bothacking | -11 -10 -9 ------------ Run | Jun Mat Mat Used RIF Installer . | . . . Robots Hacked . | . . . Non-combat . | . . . Combat . | . . . Robot Hacks Applied . | . . . Relay Couplers Released . | . . . Fabnet Peak Effective % . | . . . Robots Rewired . | . . . Allies Hacked . | . . . Hacks Repelled . | . . . Allies | -11 -10 -9 -------- Run | Jun Mat Mat Total Allies . | . . . Largest Group . | . . . Highest-Rated Group . | . . . Highest-Rated Ally . | . . . Total Orders . | . . . Ally Attacks . | . . . Total Damage . | . . . Kills . | . . . Allies Corrupted . | . . . Allies Melted . | . . . Intel | -11 -10 -9 ------- Run | Jun Mat Mat Robot Analysis Total . | . . . Derelict Logs Recovered . | . . . Drone Launches . | . . . Drone Recoveries . | . . . Exploration | -11 -10 -9 ------------- Run | Jun Mat Mat Turns Passed 1045 | 76 674 295 Spaces Moved 732 | 61 524 147 Core 26 | 17 . 9 Treads . | . . . Legs 700 | 44 524 132 Wheels . | . . . Hover 6 | . . 6 Flight . | . . . Fastest Speed 50 | 50 120 120 Average Speed 125 | 100 120 157 Slowest Speed 240 | 120 120 240 Overloaded Moves . | . . . Propulsion Burnouts . | . . . Robots Hopped . | . . . Cave-ins Triggered 1 | . . 1 Exploration Rate (%) 28 | 3 66 15 Regions Visited 2 Branch Regions . Pre-discovered Areas . | . . . Known Exits Taken . | . . . Unknown Exits Taken 2 | 1 1 . Scrap Searched . | . . . Spaces Dug 10 | . . 10 Terrain Destroyed 152 | . 24 128 Melee . | . . . Projectile . | . . . AOE 152 | . 24 128 Terrain Rammed . | . . . Walls Destroyed . | . . . Machines Disabled . | . . . Actions | -11 -10 -9 --------- Run | Jun Mat Mat Total 815 | 76 556 183 Wait . | . . . Move 730 | 60 523 147 Hop . | . . . Pick Up 24 | 10 12 2 Fast Attach . | . . . Attach 15 | 5 3 7 Detach 1 | . . 1 Swap 6 | . 5 1 Drop 10 | 1 6 3 Fire 29 | . 7 22 Melee . | . . . Ram . | . . . Kick . | . . . Crush . | . . . Escape Stasis . | . . . Rewire . | . . . Trap . | . . . Miscellaneous . | . . . Route ------- -11/Junkyard -10/Materials (discovered 2 exits: *Mat x2) -9/Materials History --------- Turn | Location | Event 2 | -11/Junkyard | Met Revision 17 8 | -11/Junkyard | Discovered new exit (range 16) 77 | -11/Junkyard | Entered Materials 306 | -10/Materials | Build established: Mutant 467 | -10/Materials | Discovered new exit (range 13) 712 | -10/Materials | Discovered new exit (range 15) 751 | -10/Materials | Entered another Materials area 751 | -9/Materials | Evolved 2 slots: Power x1, Utility x1 926 | -9/Materials | Crushed by falling debris 1007 | -9/Materials | Core integrity fell below 50% 1041 | -9/Materials | Core integrity fell below 20% 1046 | -9/Materials | Destroyed by G-47 Trooper with Particle Gun Last Messages --------------- 01022_ The unstable cave ceiling collapses. 01022_ U-05 Engineer lays Concrete. 01022_ R-06 Scavenger collects Med. Storage Unit. 01022_ Critical hit (Burn: +37). 01023_ U-05 Engineer lays Concrete. 01023_ Destroyed Tractor Beam. 01023_ M-13 Machinist destroyed. 01024_ U-05 Engineer lays Concrete. 01024_ G-34 Mercenary suffers critical hit (Burn). 01024_ G-34 Mercenary destroyed. 01025_ U-05 Engineer lays Concrete. 01025_ Mni. Grenade Launcher destroyed. 01026_ Overheating: System interference. 01026_ Med. Laser temporarily disabled. 01026_ The unstable cave ceiling collapses. 01026_ Lgt. Nuclear Core destroyed. 01026_ U-05 Engineer lays Concrete. 01033_ Aluminum Leg destroyed. 01043_ U-05 Engineer builds a Wall. 01044_ U-05 Engineer lays Concrete. Map ----- +----------------------------------------------------+ | ?????????????????????#####???????????????????????? | | ?????????????????????# #???????????????????????? | | ?????????????????????# #???????????????????????? | | ?????????????????????# #???????????????????????? | | ?????????????????????# #???????????????????????? | | ?????????????????????# #???????????????????????? | | ?????????????????????# #???????????????????????? | | ?????????????????????# #???????????????????????? | | ?????????????????????# #???????????????????????? | | ?????????????????????# #???????????????????????? | | ?????????????????????# #???????????????????????? | | ????????????????????## ##??????????????????????? | | ???????????????????### #??????????????????????? | | ??????????#???###### # #??????????????????????? | | ??????????# ?## ### ########????????????????? | | ????+###### #### #????????????????? | | ???# %*w ##### #????????????????? | | ????????### k ##?????????????????????? | | ??????????# #??????????????????????? | | ????????#######+#### #????????#?????????????? | | ???#+##?# ## ##??????? #?????????????? | | ??? #?# """ "" # ######### ###???????????? | | ?# #?# """ ""S"" ## # #???????????? | | ?# "" #?# """ "" "" # gg #Y #???????????? | | ?# "" #?# o # g/ #???????????? | | ?# T" #?# =%Y@Y # #???????????? | | ?# "" ### %| ###### #???????????? | | ?# "" # ######## ##! #????#######???????????? | | ## [%u ##?????????????????????? | | ####### !=! #?????????????????????? | | =uu! #?????????????????????? | | ##### #+############%* #?????????????????????? | | #??# ## # %= #?????????????????????? | | #??# " #### # #?????????????????????? | | #??# #??## % ?????????????????????? | | #??# " #???###*!*! #?????????????????????? | | #?# #?????#*%[% !?????????????????????? | | #?# #?????#]*!=# ?????????????????????? | | #?### #?????# ""????????????????????? | | #???# ! ! #??????# # "?????????????????????? | | #???###########??????# # ??????????????????????? | | #????????????????????? +???????????????????????? | | #????????????????????? #???????????????????????? | | #????????????????????? #???????????????????????? | | #?????????????????????? ?????????????????????????? | | #????????????????????????????????????????????????? | | #????????????????????????????????????????????????? | | #????????????????????????????????????????????????? | | #????????????????????????????????????????????????? | | ????????????????????????????????????????????????? | +----------------------------------------------------+ Best States ------------- Heat Dissipation 28 Energy Generation 19 Energy Capacity 310 Matter Stores 300 Matter Capacity 300 Sight Range 16 Terrain Scan Density 10 Resistance: KI 20 Resistance: TH 20 Resistance: EX 20 Resistance: EM 20 Resistance: I 20 Resistance: S 20 Resistance: P 20 Evasion (%) 55 Offensive Hacking 10 Item Schematics ----------------- None Robot Schematics ------------------ None Fabricated ------------ Nothing Alien Tech Used ----------------- None Achievements -------------- Unlikely Earthworm Challenges ------------ None Game ------ Seed LinkedGuidanceProcessor Manual? 0 Play Time 00:21:37 Cumulative 36.0 hours Start 2024.01.15 @ 19:38:37 End 2024.01.15 @ 20:00:55 Sessions 1 Manual Loads 0 Difficulty Adventurer Special Mode None Game No. 31 Rogue 28 Adventurer 3 Explorer 0 Win Type - Total 0 Types 0/0/0/0/0/0/0/0/0 Lore% 23 Gallery% 33 Achievement% 19 Wizard Run 0 Options --------- ASCII 0 Keyboard 0 Movement Mouse Keybinds 0 Fullscreen 0 Font 32/SmallcapsGlow Map View 76x50 Tactical HUD 1 Map Filters NONE Filters NONE Steam 1 RUN: 885adfe9-9d3c-4166-acac-ff2ee1a6dc62